[Event "FIDE Grand Swiss 2023"]
[Site "Villa Marina, Douglas, Isle of Man"]
[Date "2023.10.25"]
[Round "1.36"]
[White "Donchenko, Alexander"]
[Black "Jumabayev, Rinat"]
[Result "0-1"]
[WhiteElo "2676"]
[BlackElo "2585"]
[EventDate "2023.10.25"]
[ECO "A07"]
[PlyCount "98"]
[BlackFideId "13702661"]
[TimeControl "40/100 + 20/50 + 15 + 30s/move"]
[WhiteFideId "24603295"]

1.Nf3 {[%clk 01:40:58] [%emt 00:00:01]} 1...d5 {[%clk 01:40:45] [%emt 00:00:15]} 
2.g3 {[%clk 01:41:12] [%emt 00:00:15]} 2...g6 {[%clk 01:40:50] [%emt 00:00:25]} 
3.Bg2 {[%clk 01:41:20] [%emt 00:00:22]} 3...Bg7 {[%clk 01:41:16] [%emt
00:00:05]} 4.O-O {[%clk 01:41:33] [%emt 00:00:17]} 4...e5 {[%clk 01:40:55] [%emt
00:00:51]} 5.d3 {[%clk 01:41:45] [%emt 00:00:17]} 5...Nc6 {[%clk 01:40:07] [%emt
00:01:18]} 6.Nc3 {[%clk 01:41:27] [%emt 00:00:49]} 6...d4 {[%clk 01:27:34] [%emt
00:13:03]} 7.Ne4 {[%clk 01:41:38] [%emt 00:00:18]} 7...h6 {[%clk 01:16:00] [%emt
00:12:05]} 8.c3 {[%clk 01:41:38] [%emt 00:00:30]} 8...Nge7 {[%clk 01:16:27]
[%emt 00:00:04]} 9.cxd4 {[%emt 00:01:25]} 9...exd4 {[%clk 01:16:46] [%emt
00:00:07]} 10.Qa4 {[%clk 01:40:30] [%emt 00:00:46]} 10...b6 {[%clk 01:10:13]
[%emt 00:07:02]} 11.b4 {[%clk 01:31:42] [%emt 00:09:18]} 11...a6 {[%clk
01:08:01] [%emt 00:02:43]} 12.b5 {[%clk 01:16:26] [%emt 00:15:46]} 12...Na5 
{[%clk 01:05:06] [%emt 00:03:25]} 13.bxa6+ {[%clk 01:16:02] [%emt 00:00:54]} 
13...Nac6 {[%clk 01:02:35] [%emt 00:03:01]} 14.Bf4 {[%clk 00:56:50] [%emt
00:19:42]} 14...O-O {[%clk 00:46:42] [%emt 00:16:22]} 15.h4 {[%clk 00:52:39]
[%emt 00:04:42]} 15...Rxa6 {[%clk 00:37:53] [%emt 00:09:19]} 16.Qc4 {[%clk
00:50:57] [%emt 00:02:11]} 16...Ra5 {[%clk 00:37:54] [%emt 00:00:29]} 17.Qc1 
{[%clk 00:39:48] [%emt 00:11:40]} 17...Kh7 {[%clk 00:37:32] [%emt 00:00:52]} 
18.Kh2 {[%clk 00:32:37] [%emt 00:07:41]} 18...Be6 {[%clk 00:25:57] [%emt
00:12:04]} 19.Rh1 {[%clk 00:27:03] [%emt 00:06:04]} 19...f6 {[%clk 00:24:16]
[%emt 00:02:11]} 20.a3 {[%clk 00:22:25] [%emt 00:05:09]} 20...Qd7 {[%clk
00:24:13] [%emt 00:00:32]} 21.Kg1 {[%clk 00:18:52] [%emt 00:04:03]} 21...Nd5 
{[%clk 00:20:00] [%emt 00:04:43]} 22.Bd2 {[%clk 00:18:46] [%emt 00:00:36]} 
22...Ra4 {[%clk 00:19:51] [%emt 00:00:40]} 23.Qc2 {[%clk 00:16:28] [%emt
00:02:48]} 23...Rfa8 {[%clk 00:18:56] [%emt 00:01:25]} 24.Rc1 {[%clk 00:16:10]
[%emt 00:00:48]} 24...Nce7 {[%clk 00:17:43] [%emt 00:01:43]} 25.Bb4 {[%clk
00:10:30] [%emt 00:06:10]} 25...Nxb4 {[%clk 00:15:40] [%emt 00:02:34]} 26.axb4 
{[%clk 00:10:56] [%emt 00:00:03]} 26...R8a7 {[%clk 00:10:02] [%emt 00:06:07]} 
27.h5 {[%clk 00:05:39] [%emt 00:05:47]} 27...g5 {[%clk 00:10:21] [%emt
00:00:12]} 28.Qb2 {[%clk 00:04:28] [%emt 00:01:41]} 28...f5 {[%clk 00:03:30]
[%emt 00:07:21]} 29.Nexg5+ {[%clk 00:04:44] [%emt 00:00:13]} 29...hxg5 {[%clk
00:03:55] [%emt 00:00:06]} 30.Nxg5+ {[%clk 00:05:08] [%emt 00:00:06]} 30...Kh8 
{[%clk 00:04:17] [%emt 00:00:07]} 31.h6 {[%clk 00:04:46] [%emt 00:00:52]} 
31...Bf6 {[%clk 00:04:44] [%emt 00:00:04]} 32.Nxe6 {[%clk 00:01:23] [%emt
00:03:53]} 32...Qxe6 {[%clk 00:05:12] [%emt 00:00:02]} 33.Bf3 {[%clk 00:01:04]
[%emt 00:00:48]} 33...Ra2 {[%clk 00:04:54] [%emt 00:00:49]} 34.Qb1 {[%clk
00:01:29] [%emt 00:00:04]} 34...Bg5 {[%clk 00:04:06] [%emt 00:01:19]} 35.Kg2 
{[%clk 00:01:04] [%emt 00:00:55]} 35...Bxc1 {[%clk 00:01:37] [%emt 00:03:00]} 
36.Qxc1 {[%clk 00:01:31] [%emt 00:00:03]} 36...Qf6 {[%clk 00:01:58] [%emt
00:00:08]} 37.Rh5 {[%clk 00:00:36] [%emt 00:01:25]} 37...f4 {[%clk 00:00:59]
[%emt 00:01:30]} 38.g4 {[%clk 00:00:41] [%emt 00:00:25]} 38...c6 {[%clk
00:01:13] [%emt 00:00:16]} 39.g5 {[%clk 00:00:35] [%emt 00:00:36]} 39...Qd6 
{[%clk 00:00:53] [%emt 00:00:51]} 40.Qc4 {[%clk 00:00:33] [%emt 00:00:32]} 
40...Ng6 {[%clk 00:00:35] [%emt 00:00:48]} 41.h7 {[%clk 00:48:50] [%emt
00:02:12]} 41...Ne7 {[%clk 00:17:15] [%emt 00:33:50]} 42.b5 {[%clk 00:20:43]
[%emt 00:28:37]} 42...Ra8 {[%clk 00:16:19] [%emt 00:01:26]} 43.bxc6 {[%clk
00:15:55] [%emt 00:05:18]} 43...R2a5 {[%clk 00:14:01] [%emt 00:02:48]} 44.Qf7 
{[%clk 00:11:47] [%emt 00:04:38]} 44...Rf5 {[%clk 00:13:49] [%emt 00:00:42]} 
45.Qb3 {[%clk 00:11:33] [%emt 00:00:44]} 45...Qe5 {[%clk 00:08:41] [%emt
00:05:38]} 46.Qxb6 {[%clk 00:11:15] [%emt 00:00:47]} 46...Rxg5+ {[%clk 00:09:08]
[%emt 00:00:04]} 47.Rxg5 {[%clk 00:11:36] [%emt 00:00:09]} 47...Qxg5+ {[%clk
00:09:33] [%emt 00:00:05]} 48.Kh3 {[%clk 00:12:01] [%emt 00:00:05]} 48...Qh6+ 
{[%clk 00:09:23] [%emt 00:00:40]} 49.Kg4 {[%clk 00:12:09] [%emt 00:00:21]} 
49...Qg6+ {[%clk 00:09:02] [%emt 00:00:51]} 0-1

[Event "FIDE Grand Swiss 2023"]
[Site "Villa Marina, Douglas, Isle of Man"]
[Date "2023.10.25"]
[Round "1.37"]
[White "Kuybokarov, Temur"]
[Black "Matlakov, Maxim"]
[Result "1-0"]
[WhiteElo "2584"]
[BlackElo "2674"]
[EventDate "2023.10.25"]
[ECO "C82"]
[PlyCount "81"]
[BlackFideId "4168003"]
[TimeControl "40/100 + 20/50 + 15 + 30s/move"]
[WhiteFideId "14203049"]

1.e4 {[%clk 01:40:54] [%emt 00:00:05]} 1...e5 {[%clk 01:40:39] [%emt 00:00:21]} 
2.Nf3 {[%clk 01:41:10] [%emt 00:00:14]} 2...Nc6 {[%clk 01:41:01] [%emt
00:00:08]} 3.Bb5 {[%clk 01:41:25] [%emt 00:00:15]} 3...a6 {[%clk 01:41:02] [%emt
00:00:30]} 4.Ba4 {[%clk 01:41:42] [%emt 00:00:12]} 4...Nf6 {[%clk 01:41:20]
[%emt 00:00:13]} 5.O-O {[%clk 01:41:53] [%emt 00:00:19]} 5...Nxe4 {[%clk
01:41:07] [%emt 00:00:42]} 6.d4 {[%clk 01:41:40] [%emt 00:00:44]} 6...b5 {[%clk
01:41:24] [%emt 00:00:13]} 7.Bb3 {[%clk 01:42:04] [%emt 00:00:06]} 7...d5 
{[%clk 01:41:47] [%emt 00:00:07]} 8.dxe5 {[%clk 01:42:06] [%emt 00:00:27]} 
8...Be6 {[%clk 01:42:04] [%emt 00:00:13]} 9.c3 {[%clk 01:40:30] [%emt 00:02:07]} 
9...Bc5 {[%clk 01:41:22] [%emt 00:01:11]} 10.Nbd2 {[%clk 01:39:43] [%emt
00:01:17]} 10...O-O {[%clk 01:38:57] [%emt 00:02:56]} 11.Bc2 {[%clk 01:39:26]
[%emt 00:00:46]} 11...Nxf2 {[%clk 01:39:05] [%emt 00:00:22]} 12.Rxf2 {[%clk
01:39:45] [%emt 00:00:11]} 12...Bxf2+ {[%clk 01:39:27] [%emt 00:00:09]} 13.Kxf2 
{[%clk 01:40:07] [%emt 00:00:07]} 13...f6 {[%clk 01:39:51] [%emt 00:00:06]} 
14.Nf1 {[%clk 01:37:14] [%emt 00:03:23]} 14...fxe5 {[%clk 01:38:54] [%emt
00:01:28]} 15.Kg1 {[%clk 01:37:22] [%emt 00:00:21]} 15...Bg4 {[%clk 01:39:07]
[%emt 00:00:17]} 16.Ne3 {[%clk 01:36:12] [%emt 00:01:40]} 16...Be6 {[%clk
01:39:30] [%emt 00:00:07]} 17.Nf1 {[%clk 01:36:16] [%emt 00:00:27]} 17...Bg4 
{[%clk 01:39:50] [%emt 00:00:09]} 18.Ne3 {[%clk 01:36:28] [%emt 00:00:18]} 
18...Be6 {[%clk 01:40:13] [%emt 00:00:07]} 19.b3 {[%clk 01:30:18] [%emt
00:06:40]} 19...a5 {[%clk 01:38:12] [%emt 00:02:31]} 20.Bb2 {[%clk 01:11:02]
[%emt 00:19:47]} 20...Qe7 {[%clk 01:37:05] [%emt 00:01:37]} 21.Qe1 {[%clk
00:59:10] [%emt 00:12:21]} 21...e4 {[%clk 01:27:09] [%emt 00:10:26]} 22.Nd4 
{[%clk 00:53:19] [%emt 00:06:22]} 22...Nxd4 {[%clk 01:26:58] [%emt 00:00:41]} 
23.cxd4 {[%clk 00:53:41] [%emt 00:00:07]} 23...Rf7 {[%clk 01:09:46] [%emt
00:17:43]} 24.Bd1 {[%clk 00:41:24] [%emt 00:12:47]} 24...Raf8 {[%clk 01:01:27]
[%emt 00:08:49]} 25.Be2 {[%clk 00:34:55] [%emt 00:06:58]} 25...Rf2 {[%clk
00:22:37] [%emt 00:39:20]} 26.Nd1 {[%clk 00:29:04] [%emt 00:06:22]} 26...e3 
{[%clk 00:16:56] [%emt 00:06:11]} 27.Nxe3 {[%clk 00:26:54] [%emt 00:02:39]} 
27...Bg4 {[%clk 00:14:45] [%emt 00:02:40]} 28.Bxg4 {[%clk 00:20:50] [%emt
00:06:35]} 28...Rxb2 {[%clk 00:15:06] [%emt 00:00:08]} 29.Nxd5 {[%clk 00:18:19]
[%emt 00:03:02]} 29...Qg5 {[%clk 00:11:05] [%emt 00:04:30]} 30.Bf3 {[%clk
00:17:23] [%emt 00:01:27]} 30...Kh8 {[%clk 00:05:41] [%emt 00:05:54]} 31.Qxa5 
{[%clk 00:12:04] [%emt 00:05:49]} 31...Rc2 {[%clk 00:05:13] [%emt 00:00:59]} 
32.Qe1 {[%clk 00:11:37] [%emt 00:00:56]} 32...c5 {[%clk 00:02:23] [%emt
00:03:21]} 33.h4 {[%clk 00:08:39] [%emt 00:03:27]} 33...Qd8 {[%clk 00:02:25]
[%emt 00:00:28]} 34.Qe4 {[%clk 00:07:41] [%emt 00:01:28]} 34...Rd2 {[%clk
00:02:45] [%emt 00:00:10]} 35.dxc5 {[%clk 00:07:08] [%emt 00:01:03]} 35...Re8 
{[%clk 00:03:14] [%emt 00:00:02]} 36.Qf5 {[%clk 00:03:44] [%emt 00:03:53]} 
36...Qxh4 {[%clk 00:03:31] [%emt 00:00:13]} 37.Rf1 {[%clk 00:03:35] [%emt
00:00:39]} 37...Qd4+ {[%clk 00:02:49] [%emt 00:01:12]} 38.Kh1 {[%clk 00:03:42]
[%emt 00:00:23]} 38...Qh4+ {[%clk 00:00:40] [%emt 00:02:40]} 39.Qh3 {[%clk
00:03:06] [%emt 00:01:05]} 39...Qg5 {[%clk 00:00:43] [%emt 00:00:26]} 40.Qh5 
{[%clk 00:02:28] [%emt 00:01:09]} 40...Qxh5+ {[%clk 00:00:32] [%emt 00:00:42]} 
41.Bxh5 {[%clk 00:02:53] [%emt 00:00:05]} 1-0

[Event "FIDE Grand Swiss 2023"]
[Site "Villa Marina, Douglas, Isle of Man"]
[Date "2023.10.25"]
[Round "1.38"]
[White "Shevchenko, Kirill"]
[Black "Akobian, Varuzhan"]
[Result "1/2-1/2"]
[WhiteElo "2671"]
[BlackElo "2582"]
[EventDate "2023.10.25"]
[ECO "A07"]
[PlyCount "120"]
[BlackFideId "13300580"]
[TimeControl "40/100 + 20/50 + 15 + 30s/move"]
[WhiteFideId "14129574"]

1.Nf3 {[%clk 01:40:57] [%emt 00:00:03]} 1...d5 {[%clk 01:40:17] [%emt 00:00:43]} 
2.g3 {[%clk 01:41:06] [%emt 00:00:21]} 2...Nf6 {[%clk 01:39:17] [%emt 00:01:29]} 
3.Bg2 {[%clk 01:40:59] [%emt 00:00:38]} 3...Nc6 {[%clk 01:36:18] [%emt
00:03:29]} 4.d4 {[%clk 01:38:21] [%emt 00:03:08]} 4...Bf5 {[%clk 01:36:20] [%emt
00:00:28]} 5.O-O {[%clk 01:34:26] [%emt 00:04:24]} 5...e6 {[%clk 01:33:22] [%emt
00:03:29]} 6.c4 {[%clk 01:15:58] [%emt 00:18:58]} 6...Nb4 {[%clk 01:24:51] [%emt
00:09:00]} 7.Ne5 {[%clk 00:57:02] [%emt 00:19:27]} 7...Bc2 {[%clk 01:17:53]
[%emt 00:07:27]} 8.Qd2 {[%clk 00:39:40] [%emt 00:17:51]} 8...Bxb1 {[%clk
01:13:27] [%emt 00:04:57]} 9.Rxb1 {[%clk 00:39:25] [%emt 00:00:46]} 9...Nxa2 
{[%clk 01:07:25] [%emt 00:06:32]} 10.cxd5 {[%clk 00:35:43] [%emt 00:04:11]} 
10...Nxd5 {[%clk 00:58:00] [%emt 00:09:55]} 11.e4 {[%clk 00:28:35] [%emt
00:07:39]} 11...Nf6 {[%clk 00:57:30] [%emt 00:00:59]} 12.Qd3 {[%clk 00:16:58]
[%emt 00:12:07]} 12...Nxc1 {[%clk 00:57:22] [%emt 00:00:38]} 13.Rbxc1 {[%clk
00:15:46] [%emt 00:01:43]} 13...c6 {[%clk 00:10:18] [%emt 00:47:34]} 14.d5 
{[%clk 00:15:53] [%emt 00:00:24]} 14...Be7 {[%clk 00:03:40] [%emt 00:07:07]} 
15.dxe6 {[%clk 00:11:36] [%emt 00:04:47]} 15...Qxd3 {[%clk 00:03:55] [%emt
00:00:14]} 16.exf7+ {[%clk 00:12:05] [%emt 00:00:02]} 16...Kf8 {[%clk 00:04:12]
[%emt 00:00:12]} 17.Nxd3 {[%clk 00:12:34] [%emt 00:00:02]} 17...Kxf7 {[%clk
00:04:28] [%emt 00:00:14]} 18.e5 {[%clk 00:13:01] [%emt 00:00:02]} 18...Ne8 
{[%clk 00:04:40] [%emt 00:00:18]} 19.Rfd1 {[%clk 00:04:30] [%emt 00:09:02]} 
19...Rd8 {[%clk 00:03:55] [%emt 00:01:15]} 20.f4 {[%clk 00:01:24] [%emt
00:03:36]} 20...Nc7 {[%clk 00:02:46] [%emt 00:01:39]} 21.Nf2 {[%clk 00:01:41]
[%emt 00:00:13]} 21...Rxd1+ {[%clk 00:02:24] [%emt 00:00:52]} 22.Rxd1 {[%clk
00:02:10] [%emt 00:00:02]} 22...Rd8 {[%clk 00:02:43] [%emt 00:00:10]} 23.Rxd8 
{[%clk 00:01:02] [%emt 00:01:39]} 23...Bxd8 {[%clk 00:03:11] [%emt 00:00:01]} 
24.Ne4 {[%clk 00:01:17] [%emt 00:00:15]} 24...Be7 {[%clk 00:01:27] [%emt
00:02:14]} 25.Kf2 {[%clk 00:01:46]} 25...Ne6 {[%clk 00:01:26] [%emt 00:00:30]} 
26.Ke3 {[%clk 00:01:20] [%emt 00:00:56]} 26...Nc5 {[%clk 00:01:02] [%emt
00:00:55]} 27.Bh3 {[%clk 00:00:53] [%emt 00:00:57]} 27...Nxe4 {[%clk 00:00:58]
[%emt 00:00:34]} 28.Kxe4 {[%clk 00:01:22] [%emt 00:00:01]} 28...Ke8 {[%clk
00:01:12] [%emt 00:00:16]} 29.Bf5 {[%clk 00:00:57] [%emt 00:00:55]} 29...h6 
{[%clk 00:00:34] [%emt 00:01:07]} 30.Bc8 {[%clk 00:00:41] [%emt 00:00:47]} 
30...b5 {[%clk 00:00:52] [%emt 00:00:12]} 31.Kf5 {[%clk 00:01:05] [%emt
00:00:06]} 31...a5 {[%clk 00:01:04] [%emt 00:00:18]} 32.Ke6 {[%clk 00:00:56]
[%emt 00:00:39]} 32...a4 {[%clk 00:00:33] [%emt 00:01:02]} 33.Bd7+ {[%clk
00:01:06] [%emt 00:00:19]} 33...Kf8 {[%clk 00:00:59] [%emt 00:00:03]} 34.Bxc6 
{[%clk 00:01:22] [%emt 00:00:15]} 34...a3 {[%clk 00:01:23] [%emt 00:00:06]} 
35.bxa3 {[%clk 00:01:44] [%emt 00:00:08]} 35...Bxa3 {[%clk 00:01:52] [%emt
00:00:02]} 36.Bxb5 {[%clk 00:02:13] [%emt 00:00:01]} 36...Bc5 {[%clk 00:01:17]
[%emt 00:01:04]} 37.Kd7 {[%clk 00:01:49] [%emt 00:00:53]} 37...Bd4 {[%clk
00:00:32] [%emt 00:01:16]} 38.Kd6 {[%clk 00:01:47] [%emt 00:00:32]} 38...Bb6 
{[%clk 00:00:39] [%emt 00:00:23]} 39.Ba4 {[%clk 00:01:12] [%emt 00:01:05]} 
39...Ba5 {[%clk 00:00:37] [%emt 00:00:33]} 40.Bc2 {[%clk 00:01:24] [%emt
00:00:17]} 40...Bb4+ {[%clk 00:00:56] [%emt 00:00:10]} 41.Kd7 {[%clk 00:01:36]
[%emt 00:00:19]} 41...Bc5 {[%clk 00:47:38] [%emt 00:03:48]} 42.Bg6 {[%clk
00:47:52] [%emt 00:04:13]} 42...Bd4 {[%clk 00:38:16] [%emt 00:09:52]} 43.Kd6 
{[%clk 00:47:41] [%emt 00:00:41]} 43...Bb6 {[%clk 00:38:27] [%emt 00:00:20]} 
44.Bd3 {[%clk 00:32:30] [%emt 00:15:41]} 44...Bd4 {[%clk 00:26:23] [%emt
00:12:33]} 45.Bc4 {[%clk 00:27:31] [%emt 00:05:30]} 45...Bb6 {[%clk 00:26:05]
[%emt 00:00:47]} 46.Be2 {[%clk 00:23:20] [%emt 00:04:41]} 46...Bd4 {[%clk
00:24:58] [%emt 00:01:38]} 47.Bh5 {[%clk 00:22:51] [%emt 00:00:58]} 47...Bb6 
{[%clk 00:23:18] [%emt 00:02:10]} 48.h4 {[%clk 00:12:36] [%emt 00:10:46]} 
48...Ba5 {[%clk 00:20:25] [%emt 00:03:22]} 49.Kd7 {[%clk 00:10:23] [%emt
00:02:44]} 49...Be1 {[%clk 00:15:49] [%emt 00:05:05]} 50.e6 {[%clk 00:10:38]
[%emt 00:00:16]} 50...Bb4 {[%clk 00:16:14] [%emt 00:00:05]} 51.Bg6 {[%clk
00:10:11] [%emt 00:00:56]} 51...Bc5 {[%clk 00:13:05] [%emt 00:03:39]} 52.g4 
{[%clk 00:09:30] [%emt 00:01:12]} 52...Bb4 {[%clk 00:12:28] [%emt 00:01:07]} 
53.Bf7 {[%clk 00:08:30] [%emt 00:01:30]} 53...Ba3 {[%clk 00:08:47] [%emt
00:04:10]} 54.Kc6 {[%clk 00:07:23] [%emt 00:01:37]} 54...Bb4 {[%clk 00:05:58]
[%emt 00:03:18]} 55.Kd5 {[%clk 00:02:14] [%emt 00:05:40]} 55...Ke7 {[%clk
00:05:21] [%emt 00:01:07]} 56.g5 {[%clk 00:02:35] [%emt 00:00:10]} 56...Be1 
{[%clk 00:04:13] [%emt 00:01:37]} 57.f5 {[%clk 00:02:18] [%emt 00:00:47]} 
57...hxg5 {[%clk 00:04:10] [%emt 00:00:33]} 58.hxg5 {[%clk 00:02:44] [%emt
00:00:05]} 58...Bd2 {[%clk 00:04:22] [%emt 00:00:17]} 59.f6+ {[%clk 00:03:06]
[%emt 00:00:08]} 59...gxf6 {[%clk 00:04:47] [%emt 00:00:05]} 60.g6 {[%clk
00:03:35] [%emt 00:00:01]} 60...Bh6 {[%clk 00:05:04] [%emt 00:00:13]} 1/2-1/2

[Event "FIDE Grand Swiss 2023"]
[Site "Villa Marina, Douglas, Isle of Man"]
[Date "2023.10.25"]
[Round "1.39"]
[White "Dardha, Daniel"]
[Black "Bacrot, Etienne"]
[Result "0-1"]
[WhiteElo "2580"]
[BlackElo "2669"]
[EventDate "2023.10.25"]
[ECO "D27"]
[PlyCount "76"]
[BlackFideId "605506"]
[TimeControl "40/100 + 20/50 + 15 + 30s/move"]
[WhiteFideId "240990"]

1.d4 {[%clk 01:40:54] [%emt 00:00:05]} 1...d5 {[%clk 01:40:55] [%emt 00:00:05]} 
2.c4 {[%clk 01:41:11] [%emt 00:00:14]} 2...dxc4 {[%clk 01:41:19] [%emt
00:00:05]} 3.Nf3 {[%clk 01:40:31] [%emt 00:01:10]} 3...Nf6 {[%clk 01:41:43]
[%emt 00:00:07]} 4.e3 {[%clk 01:40:53] [%emt 00:00:07]} 4...e6 {[%clk 01:42:02]
[%emt 00:00:11]} 5.Bxc4 {[%clk 01:41:04] [%emt 00:00:20]} 5...a6 {[%clk
01:42:20] [%emt 00:00:11]} 6.O-O {[%clk 01:41:07] [%emt 00:00:26]} 6...c5 
{[%clk 01:42:45] [%emt 00:00:05]} 7.Be2 {[%clk 01:40:10] [%emt 00:01:28]} 
7...cxd4 {[%clk 01:42:13] [%emt 00:01:03]} 8.exd4 {[%clk 01:36:54] [%emt
00:03:46]} 8...Nc6 {[%clk 01:35:39] [%emt 00:07:03]} 9.Nc3 {[%clk 01:34:02]
[%emt 00:03:23]} 9...Be7 {[%clk 01:35:14] [%emt 00:00:54]} 10.Be3 {[%clk
01:31:50] [%emt 00:02:42]} 10...Nd5 {[%clk 01:12:31] [%emt 00:23:13]} 11.Nxd5 
{[%clk 01:29:52] [%emt 00:02:29]} 11...exd5 {[%clk 01:12:16] [%emt 00:00:45]} 
12.Ne5 {[%clk 01:27:48] [%emt 00:02:33]} 12...O-O {[%clk 01:03:11] [%emt
00:09:36]} 13.Rc1 {[%clk 01:19:07] [%emt 00:09:11]} 13...Qb6 {[%clk 01:00:24]
[%emt 00:03:16]} 14.Bd3 {[%clk 01:01:31] [%emt 00:18:06]} 14...g6 {[%clk
00:58:01] [%emt 00:02:52]} 15.Qd2 {[%clk 00:53:36] [%emt 00:08:26]} 15...Be6 
{[%clk 00:53:27] [%emt 00:05:04]} 16.f4 {[%clk 00:44:35] [%emt 00:09:31]} 
16...Nxe5 {[%clk 00:50:07] [%emt 00:03:50]} 17.dxe5 {[%clk 00:42:41] [%emt
00:02:24]} 17...d4 {[%clk 00:49:00] [%emt 00:01:37]} 18.Bf2 {[%clk 00:43:02]
[%emt 00:00:09]} 18...Rac8 {[%clk 00:44:10] [%emt 00:05:21]} 19.a3 {[%clk
00:39:01] [%emt 00:04:31]} 19...Rfd8 {[%clk 00:42:50] [%emt 00:01:49]} 20.Rxc8 
{[%clk 00:33:42] [%emt 00:05:49]} 20...Rxc8 {[%clk 00:43:00] [%emt 00:00:20]} 
21.Rc1 {[%clk 00:33:09] [%emt 00:01:03]} 21...Rd8 {[%clk 00:31:15] [%emt
00:12:15]} 22.b4 {[%clk 00:31:41] [%emt 00:01:58]} 22...Bd7 {[%clk 00:21:36]
[%emt 00:10:09]} 23.Be4 {[%clk 00:27:21] [%emt 00:04:50]} 23...Bc6 {[%clk
00:20:11] [%emt 00:01:55]} 24.Bxc6 {[%clk 00:20:20] [%emt 00:07:31]} 24...bxc6 
{[%clk 00:20:36] [%emt 00:00:05]} 25.Qd3 {[%clk 00:11:16] [%emt 00:09:35]} 
25...a5 {[%clk 00:19:43] [%emt 00:01:23]} 26.f5 {[%clk 00:04:49] [%emt
00:06:56]} 26...axb4 {[%clk 00:18:21] [%emt 00:01:52]} 27.e6 {[%clk 00:02:26]
[%emt 00:02:54]} 27...bxa3 {[%clk 00:15:25] [%emt 00:03:26]} 28.Rf1 {[%clk
00:02:21] [%emt 00:00:35]} 28...f6 {[%clk 00:09:57] [%emt 00:05:58]} 29.fxg6 
{[%clk 00:02:45] [%emt 00:00:06]} 29...a2 {[%clk 00:10:24] [%emt 00:00:02]} 
30.gxh7+ {[%clk 00:01:55] [%emt 00:01:21]} 30...Kh8 {[%clk 00:10:42] [%emt
00:00:12]} 31.Qg6 {[%clk 00:00:39] [%emt 00:01:45]} 31...Qb2 {[%clk 00:05:52]
[%emt 00:05:21]} 32.Qf7 {[%clk 00:00:32] [%emt 00:00:38]} 32...a1=Q {[%clk
00:05:25] [%emt 00:00:56]} 33.Qxe7 {[%clk 00:00:52] [%emt 00:00:09]} 33...Qxf1+ 
{[%clk 00:04:27]} 34.Kxf1 {[%clk 00:01:21] [%emt 00:01:30]} 34...Qb5+ {[%clk
00:04:24] [%emt 00:00:33]} 35.Ke1 {[%clk 00:01:47] [%emt 00:00:03]} 35...Qe5+ 
{[%clk 00:04:39] [%emt 00:00:15]} 36.Kf1 {[%clk 00:01:05] [%emt 00:01:12]} 
36...Ra8 {[%clk 00:02:51] [%emt 00:02:18]} 37.g4 {[%clk 00:01:04] [%emt
00:00:31]} 37...d3 {[%clk 00:02:34] [%emt 00:00:47]} 38.Qd7 {[%clk 00:00:45]
[%emt 00:00:49]} 38...Qe2+ {[%clk 00:02:25] [%emt 00:00:39]} 0-1